fUSD/lending_fUSD_20251113
["ID","MTS","AMOUNT","RATE_DAILY","PERIOD"]
[393887163,1763071741208,-500.0,0.00054794,120]
[393887164,1763071741244,-252.1456616,0.00054794,120]
[393887165,1763071741280,-500.0,0.00054794,120]
[393887166,1763071741316,-500.0,0.00054794,120]
[393887167,1763071741353,-719.78,0.00054794,120]
[393887168,1763071741393,-400.23478317,0.00054794,120]
[393887169,1763071741430,-631.22285854,0.00054794,120]
[393887170,1763071741470,-500.0,0.00054794,120]
[393887171,1763071741684,-500.0,0.00054794,120]
[393887172,1763071741731,-500.0,0.00054794,120]
[393887173,1763071741779,-500.0,0.00054794,120]
[393887174,1763071741825,-500.0,0.00054794,120]
[393887175,1763071741870,-500.0,0.00054794,120]
[393887176,1763071741918,-500.0,0.00054794,120]
[393887177,1763071741961,-500.0,0.00054794,120]
[393887178,1763071742007,-500.0,0.00054794,120]
[393887179,1763071742053,-342.6236814,0.00054794,120]
[393887180,1763071742092,-500.0,0.00054794,120]
[393887181,1763071742133,-323.47899861,0.00054794,120]
[393887182,1763071742172,-500.0,0.00054794,120]
[393887183,1763071742213,-500.0,0.00054794,120]
[393887184,1763071742253,-500.0,0.00054794,120]
[393887185,1763071742295,-500.0,0.00054794,120]
[393887186,1763071742337,-236.57401158,0.00054794,120]
[393887187,1763071742378,-500.0,0.00054794,120]
[393887188,1763071742418,-309.43901295,0.00054794,120]
[393887189,1763071742460,-427.71346725,0.00054794,120]
[393887190,1763071742502,-190.75295083,0.00054794,120]
[393887191,1763071742545,-576.15779344,0.00054794,120]
[393887192,1763071742586,-527.73973758,0.00054794,120]
[393887193,1763071742631,-500.0,0.00054794,120]
[393887194,1763071742679,-500.0,0.00054794,120]
[393887195,1763071742727,-500.0,0.00054794,120]
[393887196,1763071742772,-470.57738314,0.00054794,120]
[393887197,1763071742822,-500.0,0.00054794,120]
[393887198,1763071742870,-343.75153707,0.00054794,120]
[393887199,1763071742914,-500.0,0.00054794,120]
[393887200,1763071742962,-500.0,0.00054794,120]
[393887201,1763071743003,-180.33659381,0.00054794,120]
[393887202,1763071743048,-505.04825659,0.00054794,120]
[393887203,1763071743093,-500.0,0.00054794,120]
[393887204,1763071743137,-500.0,0.00054794,120]
[393887205,1763071743180,-500.0,0.00054794,120]
[393887206,1763071743224,-500.0,0.00054794,120]
[393887207,1763071743267,-346.82109414,0.00054794,120]
[393887208,1763071743310,-500.0,0.00054794,120]
[393887209,1763071743352,-171.78114691,0.00054794,120]
[393887210,1763071743395,-500.0,0.00054794,120]
[393887211,1763071743437,-500.0,0.00054794,120]
[393887212,1763071743483,-500.0,0.00054794,120]
[393887213,1763071743527,-360.28273532,0.00054794,120]
[393887214,1763071743568,-500.0,0.00054794,120]
[393887215,1763071743614,-500.0,0.00054794,120]
[393887216,1763071743656,-476.11336772,0.00054794,120]
[393887217,1763071743698,-500.0,0.00054794,120]
[393887218,1763071743741,-500.0,0.00054794,120]
[393887219,1763071743783,-217.328857,0.00054794,120]
[393887220,1763071743824,-500.0,0.00054794,120]
[393887221,1763071743867,-500.0,0.00054794,120]
[393887222,1763071743915,-500.0,0.00054794,120]
[393887223,1763071743966,-500.0,0.00054794,120]
[393887224,1763071744014,-500.0,0.00054794,120]
[393887225,1763071744058,-571.5552911,0.00054794,120]
[393887226,1763071744102,-500.0,0.00054794,120]
[393887227,1763071744147,-500.0,0.00054794,120]
[393887228,1763071744193,-500.0,0.00054794,120]
[393887229,1763071744237,-595.14,0.00054794,120]
[393887230,1763071744280,-500.0,0.00054794,120]
[393887231,1763071744324,-500.0,0.00054794,120]
[393887232,1763071744368,-500.0,0.00054794,120]
[393887233,1763071744409,-500.0,0.00054794,120]
[393887234,1763071744451,-616.54,0.00054794,120]
[393887235,1763071744495,-500.0,0.00054794,120]
[393887236,1763071744539,-500.0,0.00054794,120]
[393887237,1763071744581,-363.53880987,0.00054794,120]
[393887238,1763071744623,-500.0,0.00054794,120]
[393887239,1763071744670,-500.0,0.00054794,120]
[393887240,1763071744717,-500.0,0.00054794,120]
[393887241,1763071744765,-500.0,0.00054794,120]
[393887242,1763071744813,-500.0,0.00054794,120]
[393887243,1763071744862,-577.43229651,0.00054794,120]
[393887244,1763071744917,-441.02101728,0.00054794,120]
[393887245,1763071744970,-456.30568142,0.00054794,120]
[393887246,1763071745019,-500.0,0.00054794,30]
[393887247,1763071745064,-500.0,0.00054794,120]
[393887248,1763071745117,-500.0,0.00054794,120]
[393887249,1763071745162,-182.69371713,0.00054794,120]
[393887250,1763071745207,-417.127979,0.00054794,120]
[393887251,1763071745252,-460.0,0.00054794,120]
[393887252,1763071745297,-387.90486391,0.00054794,120]
[393887253,1763071745343,-500.0,0.00054794,120]
[393887254,1763071745385,-500.0,0.00054794,120]
[393887255,1763071745428,-500.0,0.00054794,120]
[393887256,1763071745468,-501.31352166,0.00054794,120]
[393887257,1763071745508,-500.0,0.00054794,120]
[393887258,1763071745551,-500.0,0.00054794,120]
[393887259,1763071745594,-500.0,0.00054794,120]
[393887260,1763071745638,-500.0,0.00054794,120]
[393887261,1763071745680,-641.51911861,0.00054794,120]
[393887262,1763071745722,-500.0,0.00054794,120]
[393887263,1763071745771,-500.0,0.00054794,120]
[393887264,1763071745811,-500.0,0.00054794,120]
[393887265,1763071745851,-500.0,0.00054794,120]
[393887266,1763071745891,-500.0,0.00054794,120]
[393887267,1763071745934,-500.0,0.00054794,120]
[393887268,1763071745978,-500.0,0.00054794,120]
[393887269,1763071746020,-500.0,0.00054794,120]
[393887270,1763071746061,-601.87031571,0.00054794,120]
[393887271,1763071746101,-500.0,0.00054794,120]
[393887272,1763071746143,-500.0,0.00054794,120]
[393887273,1763071746188,-500.0,0.00054794,120]
[393887274,1763071746230,-500.0,0.00054794,120]
[393887275,1763071746271,-500.0,0.00054794,120]
[393887276,1763071746470,-540.30343584,0.00054794,120]
[393887277,1763071746514,-709.95,0.00054794,120]
[393887278,1763071746557,-500.0,0.00054794,120]
[393887279,1763071746598,-244.69372612,0.00054794,120]
[393887280,1763071746639,-428.70473894,0.00054794,120]
[393887281,1763071746682,-500.0,0.00054794,120]
[393887282,1763071746724,-152.65732089,0.00054794,120]
[393887283,1763071746765,-157.27636506,0.00054794,120]
[393887284,1763071746807,-500.0,0.00054794,120]
[393887285,1763071746853,-500.0,0.00054794,120]
[393887286,1763071746897,-1000.0,0.00054794,120]
[393887287,1763071746938,-500.0,0.00054794,120]
[393887288,1763071746981,-500.0,0.00054794,120]
[393887289,1763071747023,-500.0,0.00054794,120]
[393887290,1763071747066,-500.0,0.00054794,120]
[393887291,1763071747109,-500.0,0.00054794,120]
[393887292,1763071747150,-289.5500803,0.00054794,120]
[393887293,1763071747196,-500.0,0.00054794,120]
[393887294,1763071747239,-500.0,0.00054794,120]
[393887295,1763071747281,-500.0,0.00054794,120]
[393887296,1763071747323,-400.0,0.00054794,120]
[393887297,1763071747368,-500.0,0.00054794,120]
[393887298,1763071747412,-500.0,0.00054794,120]
[393887299,1763071747454,-500.0,0.00054794,120]
[393887300,1763071747499,-500.0,0.00054794,120]
[393887301,1763071747544,-508.29340515,0.00054794,120]
[393887302,1763071747588,-500.0,0.00054794,30]
[393887303,1763071747635,-469.67609312,0.00054794,120]
[393887304,1763071747682,-508.07098749,0.00054794,120]
[393887305,1763071747732,-500.0,0.00054794,120]
[393887306,1763071747776,-388.41968808,0.00054794,120]
[393887307,1763071747819,-409.32971404,0.00054794,120]
[393887308,1763071747862,-500.0,0.00054794,120]
[393887309,1763071747905,-500.0,0.00054794,120]
[393887310,1763071747951,-500.0,0.00054794,120]
[393887311,1763071747998,-500.0,0.00054794,120]
[393887312,1763071748046,-500.0,0.00054794,120]
[393887313,1763071748093,-500.0,0.00054794,120]
[393887314,1763071748139,-500.0,0.00054794,120]
[393887315,1763071748183,-547.26444239,0.00054794,120]
[393887316,1763071748230,-500.0,0.00054794,120]
[393887317,1763071748276,-500.0,0.00054794,120]
[393887318,1763071748324,-500.0,0.00054794,120]
[393887319,1763071748369,-500.0,0.00054794,120]
[393887320,1763071748411,-500.0,0.00054794,120]
[393887321,1763071748455,-500.0,0.00054794,120]
[393887322,1763071748501,-500.0,0.00054794,120]
[393887323,1763071748550,-617.89,0.00054794,120]
[393887324,1763071748595,-500.0,0.00054794,120]
[393887325,1763071748639,-600.82079861,0.00054794,120]
[393887326,1763071748686,-500.0,0.00054794,120]
[393887327,1763071748736,-500.0,0.00054794,120]
[393887328,1763071748783,-500.0,0.00054794,120]
[393887329,1763071748830,-271.37344051,0.00054794,120]
[393887330,1763071748881,-500.0,0.00054794,120]
[393887331,1763071748933,-500.0,0.00054794,120]
[393887332,1763071748979,-500.0,0.00054794,120]
[393887333,1763071749024,-500.0,0.00054794,120]
[393887334,1763071749073,-500.0,0.00054794,120]
[393887335,1763071749125,-413.05562264,0.00054794,120]
[393887338,1763071749187,-500.0,0.00054794,120]
[393887341,1763071749232,-482.44100666,0.00054794,120]
[393887344,1763071749278,-500.0,0.00054794,120]
[393887347,1763071749322,-313.13830214,0.00054794,120]
[393887350,1763071749366,-500.0,0.00054794,120]
[393887353,1763071749409,-500.0,0.00054794,120]
[393887356,1763071749450,-500.0,0.00054794,120]
[393887359,1763071749503,-500.0,0.00054794,120]
[393887361,1763071749565,-521.69,0.00054794,120]
[393887364,1763071749619,-500.0,0.00054794,120]
[393887367,1763071749666,-500.0,0.00054794,120]
[393887370,1763071749711,-400.0,0.00054794,120]
[393887374,1763071749762,-500.0,0.00054794,120]
[393887377,1763071749816,-578.84924805,0.00054794,120]
[393887381,1763071749872,-500.0,0.00054794,120]
[393887384,1763071749931,-500.0,0.00054794,120]
[393887386,1763071749979,-500.0,0.00054794,120]
[393887389,1763071750031,-500.0,0.00054794,120]
[393887392,1763071750078,-500.0,0.00054794,120]
[393887395,1763071750131,-605.67116772,0.00054794,120]
[393887398,1763071750178,-546.61,0.00054794,120]
[393887401,1763071750221,-500.0,0.00054794,120]
[393887404,1763071750269,-500.0,0.00054794,120]
[393887407,1763071750312,-500.0,0.00054794,120]
[393887409,1763071750356,-500.0,0.00054794,120]
[393887410,1763071750399,-500.0,0.00054794,120]
[393887412,1763071750446,-625.87360418,0.00054794,120]
[393887414,1763071750489,-500.0,0.00054794,120]
[393887417,1763071750533,-500.0,0.00054794,120]
[393887420,1763071750576,-500.0,0.00054794,120]
[393887423,1763071750618,-500.0,0.00054794,120]
[393887426,1763071750663,-500.0,0.00054794,120]
[393887428,1763071750706,-285.83696218,0.00054794,120]
[393887431,1763071750747,-500.0,0.00054794,60]
[393887434,1763071750788,-500.0,0.00054794,120]
[393887437,1763071750831,-500.0,0.00054794,120]
[393887439,1763071750872,-500.0,0.00054794,120]
[393887442,1763071750913,-500.0,0.00054794,120]
[393887445,1763071750958,-500.0,0.00054794,120]
[393887448,1763071751003,-500.0,0.00054794,120]
[393887451,1763071751046,-500.0,0.00054794,120]
[393887453,1763071751085,-500.0,0.00054794,120]
[393887455,1763071751124,-500.0,0.00054794,120]
[393887456,1763071751179,-592.66588877,0.00054794,120]
[393887457,1763071751220,-500.0,0.00054794,120]
[393887458,1763071751466,-1000.0,0.00054794,120]
[393887459,1763071751507,-500.0,0.00054794,30]
[393887460,1763071751552,-500.0,0.00054794,120]
[393887461,1763071751592,-500.0,0.00054794,120]
[393887462,1763071751634,-500.0,0.00054794,120]
[393887463,1763071751676,-500.0,0.00054794,120]
[393887464,1763071751718,-500.0,0.00054794,120]
[393887465,1763071751760,-500.0,0.00054794,120]
[393887466,1763071751802,-500.0,0.00054794,120]
[393887467,1763071751844,-500.0,0.00054794,120]
[393887468,1763071751890,-500.0,0.00054794,120]
[393887469,1763071751934,-500.0,0.00054794,120]
[393887470,1763071751978,-500.0,0.00054794,120]
[393887471,1763071752025,-980.05,0.00054794,120]
[393887472,1763071752069,-500.0,0.00054794,120]
[393887473,1763071752110,-500.0,0.00054794,120]
[393887474,1763071752151,-500.61453471,0.00054794,120]
[393887475,1763071752194,-500.0,0.00054794,120]
[393887476,1763071752235,-600.74117724,0.00054794,120]
[393887477,1763071752275,-500.0,0.00054794,120]
[393887478,1763071752318,-500.0,0.00054794,120]
[393887479,1763071752361,-500.0,0.00054794,120]
[393887480,1763071752403,-500.0,0.00054794,120]
[393887481,1763071752444,-500.0,0.00054794,120]
[393887482,1763071752486,-500.0,0.00054794,120]
[393887483,1763071752529,-500.0,0.00054794,120]
[393887484,1763071752573,-500.0,0.00054794,120]
[393887485,1763071752620,-500.0,0.00054794,60]
[393887486,1763071752664,-563.47,0.00054794,60]
[393887487,1763071752708,-607.05,0.00054794,120]
[393887488,1763071752749,-500.0,0.00054794,120]
[393887489,1763071752790,-500.0,0.00054794,120]
[393887490,1763071752831,-500.0,0.00054794,120]
[393887491,1763071752871,-500.0,0.00054794,120]
[393887492,1763071752911,-500.0,0.00054794,120]
[393887493,1763071752954,-538.70900166,0.00054794,120]
[393887494,1763071753001,-635.97425693,0.00054794,120]
[393887495,1763071753047,-593.76,0.00054794,120]
[393887496,1763071753093,-500.0,0.00054794,120]
[393887497,1763071753136,-500.0,0.00054794,120]
[393887498,1763071753183,-500.0,0.00054794,120]
[393887499,1763071753229,-500.0,0.00054794,120]
[393887500,1763071753273,-500.0,0.00054794,120]
[393887501,1763071753322,-1101.86,0.00054794,120]
[393887502,1763071753368,-500.0,0.00054794,120]
[393887503,1763071753413,-500.0,0.00054794,120]
[393887504,1763071753457,-500.0,0.00054794,120]
[393887505,1763071753501,-762.83,0.00054794,120]
[393887506,1763071753546,-500.0,0.00054794,120]
[393887507,1763071753589,-500.0,0.00054794,120]
[393887508,1763071753632,-500.0,0.00054794,120]
[393887509,1763071753677,-500.0,0.00054794,120]
[393887510,1763071753727,-500.0,0.00054794,120]
[393887511,1763071753775,-500.0,0.00054794,120]
[393887512,1763071753819,-1534.05,0.00054794,120]
[393887513,1763071753862,-400.00225123,0.00054794,120]
[393887514,1763071753904,-500.0,0.00054794,120]
[393887515,1763071753948,-500.0,0.00054794,120]
[393887516,1763071753993,-500.0,0.00054794,120]
[393887517,1763071754038,-500.0,0.00054794,120]
[393887518,1763071754082,-500.0,0.00054794,120]
[393887519,1763071754127,-632.56,0.00054794,120]
[393887520,1763071754169,-500.0,0.00054794,120]
[393887521,1763071754211,-506.29804031,0.00054794,120]
[393887522,1763071754251,-500.0,0.00054794,120]
[393887523,1763071754293,-500.0,0.00054794,120]
[393887524,1763071754335,-338.39284532,0.00054794,120]
[393887525,1763071754377,-500.0,0.00054794,120]
[393887526,1763071754418,-500.0,0.00054794,120]
[393887527,1763071754458,-500.0,0.00054794,120]
[393887528,1763071754507,-641.45425868,0.00054794,120]
[393887529,1763071754553,-1037.49,0.00054794,120]
[393887530,1763071754595,-500.0,0.00054794,120]
[393887531,1763071754640,-500.0,0.00054794,120]
[393887532,1763071754687,-500.0,0.00054794,120]
[393887533,1763071754732,-500.0,0.00054794,120]
[393887534,1763071754777,-178.54505445,0.00054794,120]
[393887535,1763071754823,-856.55,0.00054794,120]
[393887536,1763071754870,-500.0,0.00054794,120]
[393887537,1763071754918,-538.23,0.00054794,120]
[393887538,1763071754968,-524.15726286,0.00054794,120]
[393887539,1763071755014,-500.0,0.00054794,120]
[393887540,1763071755058,-500.0,0.00054794,120]
[393887541,1763071755102,-517.2575288,0.00054794,120]
[393887542,1763071755146,-500.0,0.00054794,120]
[393887543,1763071755192,-1144.9,0.00054794,120]
[393887544,1763071755243,-524.19568123,0.00054794,120]
[393887545,1763071755291,-500.0,0.00054794,120]
[393887546,1763071755337,-500.0,0.00054794,120]
[393887547,1763071755381,-778.24,0.00054794,120]
[393887548,1763071755424,-500.0,0.00054794,120]
[393887549,1763071755469,-500.0,0.00054794,120]
[393887550,1763071755513,-724.73,0.00054794,30]
[393887551,1763071755556,-500.0,0.00054794,120]
[393887552,1763071755599,-700.03,0.00054794,120]
[393887553,1763071755644,-747.97,0.00054794,120]
[393887554,1763071755688,-400.0,0.00054794,120]
[393887555,1763071755734,-500.0,0.00054794,120]
[393887556,1763071755782,-500.0,0.00054794,120]
[393887557,1763071755829,-500.0,0.00054794,60]
[393887558,1763071755877,-513.15512539,0.00054794,120]
[393887559,1763071755921,-500.0,0.00054794,120]
[393887560,1763071755976,-500.0,0.00054794,120]
[393887561,1763071756237,-434.74681576,0.00054794,120]
[393887562,1763071756281,-540.63991133,0.00054794,120]
[393887563,1763071756326,-500.0,0.00054794,120]
[393887564,1763071756372,-500.0,0.00054794,120]
[393887565,1763071756414,-500.0,0.00054794,120]
[393887566,1763071756456,-500.0,0.00054794,120]
[393887567,1763071756501,-697.67,0.00054794,120]
[393887568,1763071756544,-500.0,0.00054794,120]
[393887569,1763071756587,-532.85,0.00054794,120]
[393887570,1763071756636,-500.0,0.00054794,120]
[393887571,1763071756689,-500.0,0.00054794,120]
[393887572,1763071756742,-500.0,0.00054794,120]
[393887573,1763071756795,-500.0,0.00054794,120]
[393887574,1763071756846,-500.0,0.00054794,120]
[393887575,1763071756892,-500.0,0.00054794,120]
[393887576,1763071756948,-500.0,0.00054794,120]
[393887577,1763071757006,-500.0,0.00054794,120]
[393887578,1763071757054,-500.0,0.00054794,120]
[393887579,1763071757103,-334.23095053,0.00054794,120]
[393887580,1763071757156,-500.0,0.00054794,120]
[393887581,1763071757205,-500.0,0.00054794,120]
[393887582,1763071757257,-500.0,0.00054794,120]
[393887583,1763071757300,-500.0,0.00054794,120]
[393887584,1763071757344,-499.79515964,0.00054794,120]
[393887585,1763071757387,-500.0,0.00054794,120]
[393887586,1763071757431,-500.0,0.00054794,120]
[393887587,1763071757475,-427.25108668,0.00054794,120]
[393887588,1763071757522,-500.0,0.00054794,120]
[393887589,1763071757572,-500.0,0.00054794,120]
[393887590,1763071757616,-500.0,0.00054794,120]
[393887591,1763071757661,-196.87296268,0.00054794,120]
[393887592,1763071757707,-500.0,0.00054794,120]
[393887593,1763071757753,-500.0,0.00054794,120]
[393887594,1763071757799,-500.0,0.00054794,120]
[393887595,1763071757844,-188.28174178,0.00054794,120]
[393887596,1763071757889,-500.0,0.00054794,120]
[393887597,1763071757936,-500.0,0.00054794,120]
[393887598,1763071757986,-500.0,0.00054794,120]
[393887599,1763071758031,-531.44481707,0.00054794,120]
[393887600,1763071758074,-500.0,0.00054794,120]
[393887601,1763071758119,-500.0,0.00054794,120]
[393887602,1763071758164,-500.0,0.00054794,120]
[393887603,1763071758209,-500.0,0.00054794,120]
[393887604,1763071758268,-500.0,0.00054794,120]
[393887605,1763071758324,-708.94,0.00054794,30]
[393887606,1763071758372,-249.4826976,0.00054794,120]
[393887607,1763071758419,-500.0,0.00054794,120]
[393887608,1763071758480,-500.0,0.00054794,120]
[393887609,1763071758531,-500.0,0.00054794,120]
[393887610,1763071758577,-500.0,0.00054794,120]
[393887611,1763071758625,-400.11665273,0.00054794,120]
[393887612,1763071758671,-500.0,0.00054794,120]
[393887613,1763071758718,-500.0,0.00054794,120]
[393887614,1763071758765,-500.0,0.00054794,120]
[393887615,1763071758811,-500.0,0.00054794,120]
[393887616,1763071758858,-500.0,0.00054794,120]
[393887617,1763071758905,-500.0,0.00054794,120]
[393887618,1763071758953,-385.31402367,0.00054794,120]
[393887619,1763071759001,-591.89,0.00054794,120]
[393887620,1763071759049,-178.09329404,0.00054794,120]
[393887621,1763071759095,-509.72,0.00054794,120]
[393887622,1763071759140,-500.0,0.00054794,120]
[393887623,1763071759185,-500.0,0.00054794,120]
[393887624,1763071759232,-1000.54,0.00054794,120]
[393887625,1763071759281,-590.63,0.00054794,120]
[393887626,1763071759326,-500.0,0.00054794,120]
[393887627,1763071759371,-500.0,0.00054794,120]
[393887628,1763071759417,-345.53565736,0.00054794,120]
[393887629,1763071759464,-500.0,0.00054794,120]
[393887630,1763071759509,-597.90743145,0.00054794,120]
[393887631,1763071759554,-500.0,0.00054794,120]
[393887632,1763071759597,-500.0,0.00054794,120]
[393887633,1763071759641,-500.0,0.00054794,120]
[393887634,1763071759692,-500.0,0.00054794,120]
[393887635,1763071759751,-500.0,0.00054794,120]
[393887636,1763071759804,-500.0,0.00054794,120]
[393887637,1763071759852,-500.0,0.00054794,120]
[393887638,1763071759902,-500.0,0.00054794,120]
[393887639,1763071759950,-500.0,0.00054794,120]
[393887640,1763071759998,-500.0,0.00054794,120]
[393887641,1763071760051,-500.0,0.00054794,120]
[393887642,1763071760102,-500.0,0.00054794,120]
[393887643,1763071760152,-500.0,0.00054794,120]
[393887644,1763071760199,-393.65511723,0.00054794,120]
[393887645,1763071760249,-500.0,0.00054794,120]
[393887646,1763071760300,-500.0,0.00054794,120]
[393887647,1763071760347,-573.26228105,0.00054794,120]
[393887648,1763071760394,-500.0,0.00054794,120]
[393887649,1763071760441,-500.0,0.00054794,120]
[393887650,1763071760494,-500.0,0.00054794,120]
[393887651,1763071760542,-500.0,0.00054794,120]
[393887652,1763071760586,-500.0,0.00054794,120]
[393887653,1763071760630,-493.14705702,0.00054794,120]
[393887654,1763071760676,-500.0,0.00054794,120]
[393887655,1763071760723,-613.78315302,0.00054794,120]
[393887656,1763071760770,-174.45184591,0.00054794,120]
[393887657,1763071760814,-500.0,0.00054794,120]
[393887658,1763071760858,-500.0,0.00054794,120]
[393887659,1763071760901,-500.0,0.00054794,120]
[393887660,1763071761101,-500.0,0.00054794,120]
[393887661,1763071761156,-306.10478781,0.00054794,120]
[393887662,1763071761199,-500.0,0.00054794,120]
[393887663,1763071761245,-500.0,0.00054794,120]
[393887664,1763071761291,-500.0,0.00054794,120]
[393887665,1763071761342,-345.16249021,0.00054794,120]
[393887666,1763071761391,-838.63,0.00054794,120]
[393887667,1763071761438,-500.0,0.00054794,120]
[393887668,1763071761485,-463.38598824,0.00054794,120]
[393887669,1763071761533,-327.21176771,0.00054794,120]
[393887670,1763071761578,-487.52167063,0.00054794,120]
[393887671,1763071761622,-500.0,0.00054794,120]
[393887672,1763071761676,-500.0,0.00054794,120]
[393887673,1763071761726,-500.0,0.00054794,120]
[393887674,1763071761776,-500.0,0.00054794,120]
[393887675,1763071761821,-500.0,0.00054794,120]
[393887676,1763071761867,-500.0,0.00054794,120]
[393887677,1763071761916,-521.50599681,0.00054794,120]
[393887678,1763071761968,-500.0,0.00054794,120]
[393887679,1763071762016,-198.89734712,0.00054794,120]
[393887680,1763071762065,-480.09712397,0.00054794,120]
[393887681,1763071762110,-500.0,0.00054794,120]
[393887682,1763071762156,-500.0,0.00054794,120]
[393887683,1763071762206,-500.0,0.00054794,120]
[393887684,1763071762262,-500.0,0.00054794,120]
[393887685,1763071762308,-500.0,0.00054794,120]
[393887686,1763071762355,-797.75,0.00054794,120]
[393887687,1763071762400,-500.0,0.00054794,120]
[393887688,1763071762445,-500.0,0.00054794,120]
[393887689,1763071762488,-260.3205965,0.00054794,120]
[393887690,1763071762534,-353.27028177,0.00054794,120]
[393887691,1763071762578,-500.0,0.00054794,120]
[393887692,1763071762622,-500.0,0.00054794,120]
[393887693,1763071762668,-533.87616243,0.00054794,120]
[393887694,1763071762715,-715.55,0.00054794,120]
[393887695,1763071762758,-500.0,0.00054794,120]
[393887696,1763071762803,-304.9513524,0.00054794,120]
[393887697,1763071762849,-500.0,0.00054794,120]
[393887698,1763071762894,-500.0,0.00054794,120]
[393887699,1763071762939,-483.90018101,0.00054794,120]
[393887700,1763071762987,-500.0,0.00054794,120]
[393887701,1763071763039,-310.33541317,0.00054794,120]
[393887702,1763071763086,-500.0,0.00054794,120]
[393887703,1763071763131,-500.0,0.00054794,120]
[393887704,1763071763178,-500.0,0.00054794,120]
[393887705,1763071763221,-500.0,0.00054794,120]
[393887706,1763071763264,-609.5,0.00054794,120]
[393887707,1763071763308,-500.0,0.00054794,120]
[393887708,1763071763352,-500.0,0.00054794,120]
[393887709,1763071763397,-500.0,0.00054794,120]
[393887710,1763071763441,-500.0,0.00054794,120]
[393887711,1763071763484,-500.0,0.00054794,120]
[393887712,1763071763538,-649.13500478,0.00054795,35]
[393887713,1763071763580,-500.0,0.00054795,35]
[393887714,1763071763621,-152.0,0.000548,120]
[393887715,1763071763667,-303.66372133,0.000548,120]
[393887716,1763071763715,-500.0,0.00054801,120]
[393887717,1763071763766,-1000.0,0.0005488,120]
[393887718,1763071763815,-1000.0,0.0005488,120]
[393887719,1763071763862,-1000.0,0.0005488,120]
[393887720,1763071763909,-1000.0,0.0005488,120]
[393887721,1763071763957,-1000.0,0.0005488,120]
[393887722,1763071764003,-1000.0,0.0005488,120]
[393887723,1763071764050,-1000.0,0.0005488,120]
[393887724,1763071764098,-1000.0,0.0005488,120]
[393887725,1763071764148,-1000.0,0.0005488,120]
[393887726,1763071764197,-1000.0,0.0005488,120]
[393887727,1763071764245,-1000.0,0.0005488,120]
[393887728,1763071764294,-808.84,0.0005488,120]
[393887729,1763071764341,-953.0,0.00054932,30]
[393887730,1763071764388,-1116.97,0.00054939,120]
[393887731,1763071764434,-1000.0,0.00054999,120]
[393887732,1763071764480,-50000.0,0.00055,65]
[393887733,1763071764525,-150.03163316,0.00055,120]
[393887734,1763071764568,-587.37,0.00055,120]
[393887735,1763071764621,-1806.53,0.00055,120]
[393887736,1763071764664,-2241.3507306,0.00055,120]
[393887737,1763071764707,-765.27564828,0.00055,120]
[393887738,1763071764749,-214.66967055,0.00055,120]
[393887739,1763071764790,-339.39384389,0.00055,120]